[Event "SPICE Cup 2014"]
[Site "St. Louis"]
[Date "2014.10.23"]
[Round "4"]
[White "Kjartansson, Gudmundur"]
[Black "Naroditsky, Daniel"]
[Result "0-1"]
[ECO "E06"]
[WhiteElo "2439"]
[BlackElo "2601"]
[PlyCount "114"]
[EventDate "2014.??.??"]
[EventCountry "USA"]
[TimeControl "5400+30"]
[WhiteClock "0:00:49"]
[BlackClock "0:06:34"]

1. d4 {[%emt 0:00:00]} Nf6 {[%emt 0:00:00]} 2. c4 {[%emt 0:00:00]} e6 {[%emt 0:
00:00]} 3. Nf3 {[%emt 0:00:28]} d5 {[%emt 0:00:14]} 4. g3 {[%emt 0:00:25]} Be7
{[%emt 0:00:20]} 5. Bg2 {[%emt 0:00:06]} O-O {[%emt 0:00:09]} 6. O-O {[%emt 0:
03:28]} dxc4 {[%emt 0:00:13]} 7. Ne5 {[%emt 0:02:02]} Nc6 {[%emt 0:01:13]} 8.
Bxc6 {[%emt 0:00:11]} bxc6 {[%emt 0:00:05]} 9. Nxc6 {[%emt 0:00:03]} Qe8 {
[%emt 0:00:13]} 10. Nxe7+ {[%emt 0:00:06]} Qxe7 {[%emt 0:00:07]} 11. Na3 {
[%emt 0:00:19]} Rd8 {[%emt 0:14:55]} 12. Qc2 {[%emt 0:02:01]} Rxd4 {[%emt 0:06:
05]} 13. Nxc4 {[%emt 0:00:45]} Qc5 {[%emt 0:19:08]} 14. b3 {[%emt 0:03:59]} Rd8
{[%emt 0:05:14]} 15. Ba3 {[%emt 0:03:51]} Qh5 {[%emt 0:02:24]} 16. f3 {[%emt 0:
12:02]} Ba6 {[%emt 0:02:35]} 17. Rad1 {[%emt 0:15:36]} h6 {[%emt 0:03:01]} 18.
Kg2 {[%emt 0:04:41]} Nd5 {[%emt 0:03:23]} 19. Rd3 {[%emt 0:02:24]} Nb6 {[%emt
0:03:14]} 20. Rxd8+ {[%emt 0:09:58]} Rxd8 {[%emt 0:00:10]} 21. Ne3 {[%emt 0:03:
09]} Qa5 {[%emt 0:03:36]} 22. Bc1 {[%emt 0:00:37]} Nd5 {[%emt 0:00:21]} 23.
Nxd5 {[%emt 0:01:48]} exd5 {[%emt 0:04:14]} 24. Rd1 {[%emt 0:03:32]} c5 {[%emt
0:01:42]} 25. Qd2 {[%emt 0:11:21]} Qb5 {[%emt 0:01:07]} 26. e3 {[%emt 0:02:15]}
Re8 {[%emt 0:07:19]} 27. Re1 {[%emt 0:01:11]} Bb7 {[%emt 0:00:11]} 28. Bb2 {
[%emt 0:01:23]} Qc6 {[%emt 0:00:32]} 29. Rf1 {[%emt 0:01:04]} f6 {[%emt 0:04:
59]} 30. Rf2 {[%emt 0:00:44]} Qe6 {[%emt 0:00:29]} 31. Ba3 {[%emt 0:01:07]} Rc8
{[%emt 0:00:53]} 32. b4 {[%emt 0:03:32]} d4 {[%emt 0:02:50]} 33. e4 {[%emt 0:
03:55]} Qa6 {[%emt 0:01:17]} 34. Bb2 {[%emt 0:01:11]} d3 {[%emt 0:00:11]} 35.
e5 {[%emt 0:00:42]} fxe5 {[%emt 0:01:02]} 36. Qc3 {[%emt 0:00:39]} Qd6 {[%emt
0:02:25]} 37. bxc5 {[%emt 0:04:45]} Rxc5 {[%emt 0:00:10]} 38. Qb3+ {[%emt 0:00:
54]} Qd5 {[%emt 0:00:18]} 39. Qxd5+ {[%emt 0:00:37]} Rxd5 {[%emt 0:00:06]} 40.
Rd2 {[%emt 0:00:11]} e4 {[%emt 0:02:38]} 41. fxe4 {[%emt 0:00:51]} Rf5 {[%emt
0:00:02]} 42. Bd4 {[%emt 0:02:03]} Bxe4+ {[%emt 0:00:06]} 43. Kg1 {[%emt 0:00:
05]} a6 {[%emt 0:00:35]} 44. Rb2 {[%emt 0:00:22]} Bc6 {[%emt 0:02:04]} 45. Be3
{[%emt 0:00:40]} Ra5 {[%emt 0:03:09]} 46. Bd2 {[%emt 0:00:47]} Re5 {[%emt 0:01:
13]} 47. Rb8+ {[%emt 0:01:01]} Kf7 {[%emt 0:00:44]} 48. Rd8 {[%emt 0:00:12]}
Re2 {[%emt 0:02:44]} 49. Rxd3 {[%emt 0:00:29]} Rg2+ {[%emt 0:00:02]} 50. Kf1 {
[%emt 0:00:04]} Rxh2 {[%emt 0:00:04]} 51. Rd6 {[%emt 0:01:00]} Bb5+ {[%emt 0:
00:06]} 52. Kg1 {[%emt 0:00:25]} Re2 {[%emt 0:00:01]} 53. a3 {[%emt 0:00:22]}
Ke7 {[%emt 0:00:59]} 54. Bb4 {[%emt 0:00:07]} a5 {[%emt 0:00:29]} 55. Bc5 {
[%emt 0:01:18]} Rc2 {[%emt 0:00:02]} 56. Rd5+ {[%emt 0:00:34]} Ke6 {[%emt 0:00:
02]} 57. Rh5 {[%emt 0:00:19]} Be8 {[%emt 0:00:31]} 0-1

[Event "SPICE Cup 2014"]
[Site "St. Louis"]
[Date "2014.10.23"]
[Round "4"]
[White "Nyzhnyk, Illya"]
[Black "Sevian, Samuel"]
[Result "1/2-1/2"]
[ECO "D44"]
[WhiteElo "2613"]
[BlackElo "2484"]
[PlyCount "81"]
[EventDate "2014.??.??"]
[EventCountry "USA"]
[TimeControl "5400+30"]
[WhiteClock "0:17:37"]
[BlackClock "0:34:11"]

1. d4 {[%emt 0:00:00]} d5 {[%emt 0:00:00]} 2. c4 {[%emt 0:00:00]} e6 {[%emt 0:
00:00]} 3. Nf3 {[%emt 0:00:00]} Nf6 {[%emt 0:00:00]} 4. Nc3 {[%emt 0:00:00]} c6
{[%emt 0:00:00]} 5. Bg5 {[%emt 0:00:00]} dxc4 {[%emt 0:00:01]} 6. e4 {[%emt 0:
00:00]} b5 {[%emt 0:00:04]} 7. e5 {[%emt 0:00:00]} h6 {[%emt 0:00:04]} 8. Bh4 {
[%emt 0:00:00]} g5 {[%emt 0:00:08]} 9. Nxg5 {[%emt 0:00:03]} hxg5 {[%emt 0:00:
06]} 10. Bxg5 {[%emt 0:00:03]} Nbd7 {[%emt 0:00:05]} 11. exf6 {[%emt 0:00:05]}
Bb7 {[%emt 0:00:10]} 12. g3 {[%emt 0:00:10]} c5 {[%emt 0:00:50]} 13. d5 {[%emt
0:00:41]} Qb6 {[%emt 0:00:06]} 14. Bg2 {[%emt 0:00:04]} O-O-O {[%emt 0:00:07]}
15. O-O {[%emt 0:00:43]} b4 {[%emt 0:00:06]} 16. Rb1 {[%emt 0:00:00]} Qa6 {
[%emt 0:00:05]} 17. dxe6 {[%emt 0:00:00]} Bxg2 {[%emt 0:00:17]} 18. e7 {[%emt
0:00:00]} Bxf1 {[%emt 0:02:35]} 19. Kxf1 {[%emt 0:00:00]} Bxe7 {[%emt 0:06:27]}
20. fxe7 {[%emt 0:00:00]} Rdg8 {[%emt 0:00:08]} 21. Ne4 {[%emt 0:00:00]} c3+ {
[%emt 0:00:07]} 22. Kg1 {[%emt 0:04:28]} Rxg5 {[%emt 0:00:33]} 23. Nxg5 {[%emt
0:00:37]} Qg6 {[%emt 0:00:09]} 24. bxc3 {[%emt 0:04:02]} Qxg5 {[%emt 0:00:13]}
25. Qe2 {[%emt 0:00:27]} Qe5 {[%emt 0:08:24]} 26. Qa6+ {[%emt 0:00:26]} Kb8 {
[%emt 0:00:41]} 27. Qb5+ {[%emt 0:00:06]} Kc7 {[%emt 0:00:06]} 28. cxb4 {[%emt
0:00:51]} Qxe7 {[%emt 0:04:23]} 29. Qa5+ {[%emt 0:03:16]} Kb7 {[%emt 0:01:53]}
30. bxc5+ {[%emt 0:01:03]} Ka8 {[%emt 0:00:12]} 31. Qc3 {[%emt 1:01:46]} Qf6 {
[%emt 0:30:48]} 32. Qxf6 {[%emt 0:00:07]} Nxf6 {[%emt 0:00:02]} 33. c6 {[%emt
0:00:07]} Ng4 {[%emt 0:09:08]} 34. Rb7 {[%emt 0:08:47]} Nxh2 {[%emt 0:04:48]}
35. Rxf7 {[%emt 0:00:14]} Ng4 {[%emt 0:00:14]} 36. Rf5 {[%emt 0:00:22]} Rc8 {
[%emt 0:00:27]} 37. f3 {[%emt 0:01:01]} Nh6 {[%emt 0:00:40]} 38. Rf6 {[%emt 0:
02:57]} Ng8 {[%emt 0:00:37]} 39. Rf7 {[%emt 0:00:05]} Kb8 {[%emt 0:01:04]} 40.
Rb7+ {[%emt 0:00:20]} Ka8 {[%emt 0:00:01]} 41. Rf7 {[%emt 0:00:02]} 1/2-1/2

[Event "SPICE Cup 2014"]
[Site "St. Louis"]
[Date "2014.10.23"]
[Round "4"]
[White "Preotu, Razvan"]
[Black "Troff, Kayden W"]
[Result "0-1"]
[ECO "B90"]
[WhiteElo "2405"]
[BlackElo "2532"]
[PlyCount "112"]
[EventDate "2014.??.??"]
[EventCountry "USA"]
[TimeControl "5400+30"]
[WhiteClock "0:01:31"]
[BlackClock "0:04:54"]

1. e4 {[%emt 0:00:00]} c5 {[%emt 0:00:00]} 2. Nf3 {[%emt 0:00:00]} d6 {[%emt 0:
00:00]} 3. d4 {[%emt 0:00:11]} cxd4 {[%emt 0:00:00]} 4. Nxd4 {[%emt 0:00:10]}
Nf6 {[%emt 0:00:00]} 5. Nc3 {[%emt 0:00:16]} a6 {[%emt 0:00:00]} 6. Be3 {[%emt
0:00:31]} e5 {[%emt 0:00:05]} 7. Nb3 {[%emt 0:00:16]} Be7 {[%emt 0:00:09]} 8.
f3 {[%emt 0:00:35]} Be6 {[%emt 0:00:09]} 9. Qd2 {[%emt 0:00:30]} O-O {[%emt 0:
00:08]} 10. O-O-O {[%emt 0:00:32]} Nbd7 {[%emt 0:00:08]} 11. g4 {[%emt 0:00:42]
} b5 {[%emt 0:00:11]} 12. g5 {[%emt 0:00:25]} b4 {[%emt 0:00:12]} 13. Ne2 {
[%emt 0:00:51]} Ne8 {[%emt 0:00:10]} 14. f4 {[%emt 0:00:29]} a5 {[%emt 0:00:05]
} 15. Kb1 {[%emt 0:00:40]} a4 {[%emt 0:02:54]} 16. Nbc1 {[%emt 0:00:15]} Nb6 {
[%emt 0:00:46]} 17. Ng3 {[%emt 0:10:16]} exf4 {[%emt 0:00:52]} 18. Bxf4 {[%emt
0:00:26]} d5 {[%emt 0:01:46]} 19. Nf5 {[%emt 0:17:27]} dxe4 {[%emt 0:13:01]}
20. Qe2 {[%emt 0:06:44]} Nd5 {[%emt 0:13:20]} 21. Qxe4 {[%emt 0:03:40]} Bxf5 {
[%emt 0:02:57]} 22. Qxf5 {[%emt 0:01:00]} Ra5 {[%emt 0:02:15]} 23. Qg4 {[%emt
0:16:48]} Qb6 {[%emt 0:11:28]} 24. Bc4 {[%emt 0:12:05]} Nxf4 {[%emt 0:03:34]}
25. Qxf4 {[%emt 0:00:07]} Bxg5 {[%emt 0:00:30]} 26. Qd4 {[%emt 0:05:07]} Qc7 {
[%emt 0:04:45]} 27. Rhe1 {[%emt 0:06:28]} Bf6 {[%emt 0:07:03]} 28. Qd7 {[%emt
0:01:00]} Qxc4 {[%emt 0:06:56]} 29. Rxe8 {[%emt 0:00:11]} g6 {[%emt 0:01:17]}
30. Rde1 {[%emt 0:03:53]} Rxe8 {[%emt 0:07:36]} 31. Rxe8+ {[%emt 0:00:57]} Kg7
{[%emt 0:00:07]} 32. Qd6 {[%emt 0:02:42]} h5 {[%emt 0:06:06]} 33. Qf8+ {[%emt
0:01:21]} Kh7 {[%emt 0:00:02]} 34. Rc8 {[%emt 0:00:18]} Qd5 {[%emt 0:00:32]}
35. Rc7 {[%emt 0:02:26]} Bg7 {[%emt 0:03:55]} 36. Rxf7 {[%emt 0:00:46]} Qd4 {
[%emt 0:02:03]} 37. Rxg7+ {[%emt 0:01:28]} Qxg7 {[%emt 0:00:08]} 38. Qxb4 {
[%emt 0:00:04]} Qa7 {[%emt 0:02:41]} 39. a3 {[%emt 0:01:17]} Rg5 {[%emt 0:01:
27]} 40. Nd3 {[%emt 0:00:32]} Rg4 {[%emt 0:02:28]} 41. Qf8 {[%emt 0:00:51]}
Rg1+ {[%emt 0:02:42]} 42. Ka2 {[%emt 0:00:16]} Qg7 {[%emt 0:00:55]} 43. Qb4 {
[%emt 0:01:39]} Rg4 {[%emt 0:02:16]} 44. Qc5 {[%emt 0:01:45]} Qf7+ {[%emt 0:00:
32]} 45. Kb1 {[%emt 0:00:16]} Rg2 {[%emt 0:00:54]} 46. Ne5 {[%emt 0:01:01]} Rg5
{[%emt 0:00:48]} 47. Nxf7 {[%emt 0:03:40]} Rxc5 {[%emt 0:00:05]} 48. Nd6 {
[%emt 0:00:11]} g5 {[%emt 0:00:31]} 49. c4 {[%emt 0:00:53]} g4 {[%emt 0:00:25]}
50. Kc2 {[%emt 0:00:27]} Rc6 {[%emt 0:00:11]} 51. Ne4 {[%emt 0:00:06]} Rxc4+ {
[%emt 0:00:15]} 52. Kd3 {[%emt 0:00:05]} Rc1 {[%emt 0:00:25]} 53. Ke3 {[%emt 0:
00:36]} Rh1 {[%emt 0:00:35]} 54. Kf4 {[%emt 0:00:26]} Rxh2 {[%emt 0:00:10]} 55.
Kg5 {[%emt 0:00:11]} Kg7 {[%emt 0:00:19]} 56. Nd6 {[%emt 0:00:40]} Kf8 {[%emt
0:00:17]} 0-1

[Event "SPICE Cup 2014"]
[Site "St. Louis"]
[Date "2014.10.23"]
[Round "4"]
[White "Recuero Guerra, David"]
[Black "Le, Quang Liem"]
[Result "0-1"]
[ECO "D70"]
[WhiteElo "2424"]
[BlackElo "2706"]
[PlyCount "66"]
[EventDate "2014.??.??"]
[EventCountry "USA"]
[TimeControl "5400+30"]
[WhiteClock "0:00:33"]
[BlackClock "0:14:06"]

1. d4 {[%emt 0:00:02]} Nf6 {[%emt 0:00:00]} 2. c4 {[%emt 0:00:26]} g6 {[%emt 0:
00:00]} 3. f3 {[%emt 0:00:25]} d5 {[%emt 0:00:05]} 4. cxd5 {[%emt 0:00:11]}
Nxd5 {[%emt 0:00:04]} 5. e4 {[%emt 0:00:08]} Nb6 {[%emt 0:00:06]} 6. Nc3 {
[%emt 0:00:20]} Bg7 {[%emt 0:00:08]} 7. Be3 {[%emt 0:00:10]} O-O {[%emt 0:00:
10]} 8. Qd2 {[%emt 0:00:31]} e5 {[%emt 0:00:16]} 9. d5 {[%emt 0:01:33]} c6 {
[%emt 0:00:10]} 10. h4 {[%emt 0:00:58]} cxd5 {[%emt 0:00:10]} 11. exd5 {[%emt
0:00:08]} N8d7 {[%emt 0:00:23]} 12. h5 {[%emt 0:00:41]} Nf6 {[%emt 0:00:06]}
13. hxg6 {[%emt 0:00:10]} fxg6 {[%emt 0:00:05]} 14. O-O-O {[%emt 0:00:36]} Bd7
{[%emt 0:00:13]} 15. Kb1 {[%emt 0:00:33]} Rc8 {[%emt 0:00:17]} 16. Ka1 {[%emt
0:01:00]} e4 {[%emt 0:00:58]} 17. Bd4 {[%emt 0:01:50]} exf3 {[%emt 0:14:28]}
18. Nxf3 {[%emt 0:10:09]} Bg4 {[%emt 0:05:30]} 19. Be2 {[%emt 0:34:39]} Nc4 {
[%emt 0:13:32]} 20. Bxc4 {[%emt 0:21:34]} Rxc4 {[%emt 0:00:07]} 21. Rde1 {
[%emt 0:00:43]} Bxf3 {[%emt 0:06:57]} 22. gxf3 {[%emt 0:00:06]} b5 {[%emt 0:08:
37]} 23. Qd3 {[%emt 0:03:50]} Qd7 {[%emt 0:12:42]} 24. Be5 {[%emt 0:05:07]} a6
{[%emt 0:10:11]} 25. d6 {[%emt 0:02:35]} Qf7 {[%emt 0:00:44]} 26. Bd4 {[%emt 0:
08:01]} Rd8 {[%emt 0:01:21]} 27. Bb6 {[%emt 0:03:41]} Rd7 {[%emt 0:00:24]} 28.
Ne4 {[%emt 0:01:17]} Nxe4 {[%emt 0:09:54]} 29. fxe4 {[%emt 0:01:02]} Be5 {
[%emt 0:01:30]} 30. Rhf1 {[%emt 0:00:34]} Rxd6 {[%emt 0:01:02]} 31. Rxf7 {
[%emt 0:01:55]} Rxd3 {[%emt 0:00:09]} 32. Rb7 {[%emt 0:00:32]} Rd2 {[%emt 0:01:
25]} 33. Re7 {[%emt 0:00:30]} Bxb2+ {[%emt 0:00:40]} 0-1

[Event "SPICE Cup 2014"]
[Site "St. Louis"]
[Date "2014.10.23"]
[Round "4"]
[White "Robson, Ray"]
[Black "Durabalyi, Vasif"]
[Result "1/2-1/2"]
[ECO "C67"]
[WhiteElo "2628"]
[BlackElo "2624"]
[PlyCount "71"]
[EventDate "2014.??.??"]
[EventCountry "USA"]
[TimeControl "5400+30"]
[WhiteClock "0:00:57"]
[BlackClock "0:36:22"]

1. e4 {[%emt 0:00:00]} e5 {[%emt 0:00:00]} 2. Nf3 {[%emt 0:00:00]} Nc6 {[%emt
0:00:00]} 3. Bb5 {[%emt 0:00:05]} Nf6 {[%emt 0:00:00]} 4. O-O {[%emt 0:02:12]}
Nxe4 {[%emt 0:00:00]} 5. d4 {[%emt 0:00:38]} Nd6 {[%emt 0:00:00]} 6. Bxc6 {
[%emt 0:00:21]} dxc6 {[%emt 0:00:04]} 7. dxe5 {[%emt 0:00:19]} Nf5 {[%emt 0:00:
05]} 8. Qxd8+ {[%emt 0:00:19]} Kxd8 {[%emt 0:00:05]} 9. h3 {[%emt 0:02:12]} Bd7
{[%emt 0:00:25]} 10. Rd1 {[%emt 0:05:47]} Kc8 {[%emt 0:04:42]} 11. g4 {[%emt 0:
03:59]} Ne7 {[%emt 0:00:25]} 12. Ng5 {[%emt 0:01:09]} Be8 {[%emt 0:00:14]} 13.
f4 {[%emt 0:01:53]} h6 {[%emt 0:04:43]} 14. Nf3 {[%emt 0:04:00]} h5 {[%emt 0:
03:03]} 15. f5 {[%emt 0:11:36]} hxg4 {[%emt 0:00:47]} 16. hxg4 {[%emt 0:00:08]}
c5 {[%emt 0:06:25]} 17. Kf2 {[%emt 0:07:41]} b6 {[%emt 0:07:45]} 18. Bf4 {
[%emt 0:13:10]} Kb7 {[%emt 0:00:54]} 19. Nc3 {[%emt 0:01:14]} Nc6 {[%emt 0:03:
11]} 20. Ne4 {[%emt 0:02:43]} Rd8 {[%emt 0:03:58]} 21. c3 {[%emt 0:05:50]} Be7
{[%emt 0:04:26]} 22. Rh1 {[%emt 0:04:47]} Rg8 {[%emt 0:00:12]} 23. Rh7 {[%emt
0:02:21]} Na5 {[%emt 0:00:43]} 24. f6 {[%emt 0:09:40]} Bf8 {[%emt 0:00:04]} 25.
Rah1 {[%emt 0:01:34]} Bd7 {[%emt 0:00:16]} 26. Rh8 {[%emt 0:01:33]} Rxh8 {
[%emt 0:00:11]} 27. Rxh8 {[%emt 0:00:02]} gxf6 {[%emt 0:00:06]} 28. exf6 {
[%emt 0:00:38]} Bxg4 {[%emt 0:15:15]} 29. Ne5 {[%emt 0:01:38]} Be6 {[%emt 0:02:
09]} 30. Ng5 {[%emt 0:02:14]} Bxa2 {[%emt 0:02:25]} 31. Nh7 {[%emt 0:01:29]}
Bh6 {[%emt 0:00:02]} 32. Rxd8 {[%emt 0:00:44]} Bxf4 {[%emt 0:00:04]} 33. Re8 {
[%emt 0:02:38]} Nc6 {[%emt 0:01:59]} 34. Nd3 {[%emt 0:04:39]} Bh6 {[%emt 0:06:
25]} 35. Re4 {[%emt 0:02:07]} c4 {[%emt 0:00:05]} 36. Ne5 {[%emt 0:05:43]}
1/2-1/2

[Event "SPICE Cup 2014"]
[Site "St. Louis"]
[Date "2014.10.23"]
[Round "5"]
[White "Durabalyi, Vasif"]
[Black "Sevian, Samuel"]
[Result "1/2-1/2"]
[ECO "C89"]
[WhiteElo "2624"]
[BlackElo "2484"]
[PlyCount "79"]
[EventDate "2014.??.??"]
[EventCountry "USA"]
[TimeControl "5400+30"]
[WhiteClock "1:06:56"]
[BlackClock "0:29:27"]

1. e4 {[%emt 0:03:35]} e5 {[%emt 0:00:00]} 2. Nf3 {[%emt 0:00:07]} Nc6 {[%emt
0:00:00]} 3. Bb5 {[%emt 0:00:05]} a6 {[%emt 0:00:00]} 4. Ba4 {[%emt 0:00:06]}
Nf6 {[%emt 0:00:00]} 5. O-O {[%emt 0:00:52]} Be7 {[%emt 0:00:00]} 6. Re1 {
[%emt 0:00:04]} b5 {[%emt 0:00:32]} 7. Bb3 {[%emt 0:00:05]} O-O {[%emt 0:00:14]
} 8. c3 {[%emt 0:00:07]} d5 {[%emt 0:00:06]} 9. exd5 {[%emt 0:00:05]} Nxd5 {
[%emt 0:00:04]} 10. Nxe5 {[%emt 0:00:03]} Nxe5 {[%emt 0:00:07]} 11. Rxe5 {
[%emt 0:00:05]} c6 {[%emt 0:00:05]} 12. d3 {[%emt 0:00:04]} Bd6 {[%emt 0:01:38]
} 13. Re1 {[%emt 0:00:07]} Bf5 {[%emt 0:00:35]} 14. Qf3 {[%emt 0:03:04]} Qh4 {
[%emt 0:00:54]} 15. g3 {[%emt 0:00:06]} Qh3 {[%emt 0:01:36]} 16. Bxd5 {[%emt 0:
01:57]} cxd5 {[%emt 0:00:32]} 17. Qxd5 {[%emt 0:00:05]} Rad8 {[%emt 0:02:06]}
18. Qg2 {[%emt 0:00:06]} Qxg2+ {[%emt 0:00:32]} 19. Kxg2 {[%emt 0:00:05]} Bxd3
{[%emt 0:00:05]} 20. Be3 {[%emt 0:00:47]} Be4+ {[%emt 0:01:25]} 21. f3 {[%emt
0:00:07]} Bc6 {[%emt 0:02:35]} 22. Nd2 {[%emt 0:00:40]} Rfe8 {[%emt 0:05:54]}
23. Nb3 {[%emt 0:00:55]} f6 {[%emt 0:01:37]} 24. Bb6 {[%emt 0:01:39]} Rb8 {
[%emt 0:07:02]} 25. Bc5 {[%emt 0:03:24]} Be5 {[%emt 0:00:46]} 26. Kf2 {[%emt 0:
00:27]} Kf7 {[%emt 0:03:08]} 27. Rad1 {[%emt 0:00:46]} Bc7 {[%emt 0:06:50]} 28.
Nd4 {[%emt 0:01:22]} Bd7 {[%emt 0:02:34]} 29. Nc2 {[%emt 0:00:07]} Be6 {[%emt
0:15:43]} 30. Nb4 {[%emt 0:03:34]} a5 {[%emt 0:00:40]} 31. Nd5 {[%emt 0:02:18]}
Rbc8 {[%emt 0:01:13]} 32. b4 {[%emt 0:05:20]} Be5 {[%emt 0:13:44]} 33. f4 {
[%emt 0:02:04]} Bxd5 {[%emt 0:02:55]} 34. fxe5 {[%emt 0:04:18]} Bxa2 {[%emt 0:
00:40]} 35. exf6 {[%emt 0:03:14]} Rxe1 {[%emt 0:02:02]} 36. Rxe1 {[%emt 0:00:
16]} gxf6 {[%emt 0:01:32]} 37. Ra1 {[%emt 0:00:10]} axb4 {[%emt 0:00:16]} 38.
cxb4 {[%emt 0:00:10]} Bc4 {[%emt 0:00:12]} 39. Ra7+ {[%emt 0:00:08]} Kg6 {
[%emt 0:00:09]} 40. Ra6 1/2-1/2

[Event "SPICE Cup 2014"]
[Site "St. Louis"]
[Date "2014.10.23"]
[Round "5"]
[White "Le, Quang Liem"]
[Black "Corrales Jimenez, Fidel"]
[Result "1-0"]
[ECO "A42"]
[WhiteElo "2706"]
[BlackElo "2532"]
[PlyCount "79"]
[EventDate "2014.??.??"]
[EventCountry "USA"]
[TimeControl "5400+30"]
[WhiteClock "0:29:25"]
[BlackClock "0:49:20"]

1. d4 {[%emt 0:00:00]} g6 {[%emt 0:01:49]} 2. c4 {[%emt 0:00:10]} Bg7 {[%emt 0:
00:05]} 3. Nc3 {[%emt 0:00:38]} d6 {[%emt 0:00:13]} 4. e4 {[%emt 0:00:21]} e5 {
[%emt 0:00:47]} 5. d5 {[%emt 0:03:25]} Ne7 {[%emt 0:00:21]} 6. Be3 {[%emt 0:00:
59]} Nd7 {[%emt 0:00:54]} 7. Qd2 {[%emt 0:02:13]} a5 {[%emt 0:02:49]} 8. O-O-O
{[%emt 0:00:57]} Nc5 {[%emt 0:01:15]} 9. Kb1 {[%emt 0:03:02]} b6 {[%emt 0:01:
18]} 10. Nge2 {[%emt 0:01:26]} f5 {[%emt 0:00:37]} 11. f3 {[%emt 0:00:10]} a4 {
[%emt 0:01:37]} 12. Nc1 {[%emt 0:00:42]} Ng8 {[%emt 0:02:30]} 13. Nd3 {[%emt 0:
12:49]} Nf6 {[%emt 0:02:19]} 14. Nxc5 {[%emt 0:10:04]} bxc5 {[%emt 0:00:08]}
15. Bd3 {[%emt 0:00:32]} fxe4 {[%emt 0:01:16]} 16. fxe4 {[%emt 0:01:32]} O-O {
[%emt 0:01:49]} 17. Be2 {[%emt 0:04:23]} Rb8 {[%emt 0:05:36]} 18. Rhf1 {[%emt
0:01:02]} Rb4 {[%emt 0:01:57]} 19. a3 {[%emt 0:02:26]} Rb3 {[%emt 0:00:26]} 20.
Rf2 {[%emt 0:01:43]} Ng4 {[%emt 0:08:53]} 21. Bg5 {[%emt 0:07:34]} Bf6 {[%emt
0:00:43]} 22. Bxf6 {[%emt 0:00:31]} Rxf6 {[%emt 0:00:49]} 23. Bxg4 {[%emt 0:03:
09]} Rxf2 {[%emt 0:03:14]} 24. Qxf2 {[%emt 0:00:07]} Bxg4 {[%emt 0:00:02]} 25.
Rf1 {[%emt 0:00:12]} Qe7 {[%emt 0:08:57]} 26. Nxa4 {[%emt 0:00:17]} Kg7 {[%emt
0:00:40]} 27. Nc3 {[%emt 0:00:24]} Bd7 {[%emt 0:00:55]} 28. Ka2 {[%emt 0:03:48]
} Rb8 {[%emt 0:00:02]} 29. b3 {[%emt 0:01:54]} Be8 {[%emt 0:00:35]} 30. Nd1 {
[%emt 0:01:39]} Bd7 {[%emt 0:03:45]} 31. Ne3 {[%emt 0:00:14]} Rf8 {[%emt 0:00:
03]} 32. Qxf8+ {[%emt 0:01:32]} Qxf8 {[%emt 0:00:02]} 33. Rxf8 {[%emt 0:00:11]}
Kxf8 {[%emt 0:00:04]} 34. b4 {[%emt 0:06:27]} cxb4 {[%emt 0:00:04]} 35. axb4 {
[%emt 0:00:07]} Ke7 {[%emt 0:00:02]} 36. b5 {[%emt 0:00:35]} Kf6 {[%emt 0:02:
22]} 37. Kb3 {[%emt 0:00:09]} h5 {[%emt 0:00:37]} 38. Kb4 {[%emt 0:00:51]} Kg5
{[%emt 0:00:32]} 39. g3 {[%emt 0:00:09]} h4 {[%emt 0:00:03]} 40. c5 {[%emt 0:
02:11]} 1-0

[Event "SPICE Cup 2014"]
[Site "St. Louis"]
[Date "2014.10.23"]
[Round "5"]
[White "Li, Ruifeng"]
[Black "Nyzhnyk, Illya"]
[Result "0-1"]
[ECO "C11"]
[WhiteElo "2365"]
[BlackElo "2613"]
[PlyCount "126"]
[EventDate "2014.??.??"]
[EventCountry "USA"]
[TimeControl "5400+30"]
[WhiteClock "0:02:29"]
[BlackClock "0:29:15"]

1. e4 {[%emt 0:00:00]} e6 {[%emt 0:00:00]} 2. d4 {[%emt 0:00:09]} d5 {[%emt 0:
00:00]} 3. Nc3 {[%emt 0:00:05]} Nf6 {[%emt 0:00:00]} 4. Bg5 {[%emt 0:00:50]}
dxe4 {[%emt 0:00:00]} 5. Nxe4 {[%emt 0:00:05]} Nbd7 {[%emt 0:00:00]} 6. Nxf6+ {
[%emt 0:00:11]} Nxf6 {[%emt 0:00:00]} 7. Nf3 {[%emt 0:00:15]} h6 {[%emt 0:00:
03]} 8. Bh4 {[%emt 0:00:07]} c5 {[%emt 0:01:09]} 9. c3 {[%emt 0:00:13]} cxd4 {
[%emt 0:01:10]} 10. Nxd4 {[%emt 0:00:16]} Be7 {[%emt 0:00:27]} 11. Bd3 {[%emt
0:00:24]} O-O {[%emt 0:01:10]} 12. O-O {[%emt 0:01:43]} Qb6 {[%emt 0:00:21]}
13. Qe2 {[%emt 0:02:14]} Bd7 {[%emt 0:00:18]} 14. Rad1 {[%emt 0:02:31]} Rfd8 {
[%emt 0:02:02]} 15. Nf3 {[%emt 0:06:42]} a6 {[%emt 0:09:33]} 16. Ne5 {[%emt 0:
01:40]} Bb5 {[%emt 0:00:10]} 17. c4 {[%emt 0:07:43]} Be8 {[%emt 0:02:18]} 18.
Ng4 {[%emt 0:02:14]} Nxg4 {[%emt 0:03:40]} 19. Bxe7 {[%emt 0:00:20]} Qc7 {
[%emt 0:00:11]} 20. Qxg4 {[%emt 0:00:21]} Qxe7 {[%emt 0:00:03]} 21. Qe4 {[%emt
0:02:14]} Kf8 {[%emt 0:02:05]} 22. Be2 {[%emt 0:10:57]} Bc6 {[%emt 0:01:38]}
23. Qe3 {[%emt 0:00:33]} Qg5 {[%emt 0:02:24]} 24. Qa3+ {[%emt 0:10:30]} Qe7 {
[%emt 0:00:25]} 25. Qc3 {[%emt 0:01:43]} e5 {[%emt 0:02:35]} 26. Rfe1 {[%emt 0:
03:15]} Rac8 {[%emt 0:17:27]} 27. b3 {[%emt 0:03:07]} e4 {[%emt 0:03:46]} 28.
Bg4 {[%emt 0:04:33]} Rxd1 {[%emt 0:00:33]} 29. Rxd1 {[%emt 0:00:05]} Rd8 {
[%emt 0:00:04]} 30. Qc2 {[%emt 0:02:21]} Qg5 {[%emt 0:00:32]} 31. h3 {[%emt 0:
02:09]} Rxd1+ {[%emt 0:03:24]} 32. Qxd1 {[%emt 0:00:14]} Ke7 {[%emt 0:00:04]}
33. Qd4 {[%emt 0:01:37]} Qf6 {[%emt 0:00:35]} 34. Qe3 {[%emt 0:06:36]} g5 {
[%emt 0:02:06]} 35. g3 {[%emt 0:01:41]} Qe5 {[%emt 0:00:36]} 36. Be2 {[%emt 0:
03:03]} Kd6 {[%emt 0:02:25]} 37. b4 {[%emt 0:03:38]} f5 {[%emt 0:04:32]} 38. b5
{[%emt 0:10:05]} axb5 {[%emt 0:00:37]} 39. cxb5 {[%emt 0:00:12]} Bd5 {[%emt 0:
01:29]} 40. Qb6+ {[%emt 0:05:11]} Kd7 {[%emt 0:00:13]} 41. Kh2 {[%emt 0:01:40]}
f4 {[%emt 0:05:04]} 42. Bg4+ {[%emt 0:00:21]} Ke7 {[%emt 0:00:09]} 43. Qc5+ {
[%emt 0:01:33]} Kf6 {[%emt 0:01:06]} 44. Qf8+ Kg6 45. gxf4 {[%emt 0:04:09]}
gxf4 {[%emt 0:01:06]} 46. h4 {[%emt 0:00:22]} e3 {[%emt 0:04:20]} 47. h5+ {
[%emt 0:01:15]} Kg5 {[%emt 0:00:08]} 48. f3 {[%emt 0:00:04]} Kh4 {[%emt 0:00:
04]} 49. Qb4 {[%emt 0:02:08]} Bxa2 {[%emt 0:01:51]} 50. Qe1+ {[%emt 0:00:34]}
Kg5 {[%emt 0:00:06]} 51. Kh3 {[%emt 0:01:00]} Kf6 {[%emt 0:00:06]} 52. Qb4 {
[%emt 0:00:19]} Kg7 {[%emt 0:00:59]} 53. b6 {[%emt 0:00:44]} e2 {[%emt 0:02:59]
} 54. Qe1 {[%emt 0:00:03]} Bd5 {[%emt 0:01:44]} 55. Kg2 {[%emt 0:00:19]} Kf7 {
[%emt 0:00:40]} 56. Kf2 {[%emt 0:00:21]} Qd4+ {[%emt 0:00:38]} 57. Kg2 {[%emt
0:00:15]} Qd1 {[%emt 0:00:25]} 58. Kf2 {[%emt 0:00:21]} Qxe1+ {[%emt 0:00:08]}
59. Kxe1 {[%emt 0:00:03]} Bc4 {[%emt 0:00:05]} 60. Bf5 {[%emt 0:01:22]} Ke7 {
[%emt 0:00:14]} 61. Be4 {[%emt 0:00:13]} Ba6 {[%emt 0:00:05]} 62. Bd5 {[%emt 0:
00:04]} Kd6 {[%emt 0:00:07]} 63. Be4 {[%emt 0:00:04]} Kc5 {[%emt 0:00:06]} 0-1